bitfinex/quotes_BTCUSD_20250922
["timestamp","ask_amount","ask_price","bid_price","bid_amount"]
[1758568628488,1.63112062,112620.0,112610.0,0.00366833]
[1758568628895,1.60210062,112620.0,112610.0,0.00527833]
[1758568629103,0.25540384,112620.0,112610.0,0.13231472]
[1758568629315,0.90643376,112620.0,112610.0,0.13231472]
[1758568629516,1.24643376,112620.0,112610.0,0.13231472]
[1758568629719,1.24648322,112620.0,112610.0,0.13231472]
[1758568630123,1.23819401,112620.0,112610.0,0.13231472]
[1758568630324,1.23819401,112620.0,112610.0,0.30991884]
[1758568630535,0.58716409,112620.0,112610.0,0.29411212]
[1758568630762,1.23819401,112620.0,112610.0,0.29411212]
[1758568630977,1.23819401,112620.0,112610.0,0.116508]
[1758568631185,1.23819401,112620.0,112610.0,0.13426841]
[1758568631777,1.23819401,112620.0,112610.0,0.68983253]
[1758568631993,0.58716409,112620.0,112610.0,0.67207212]
[1758568632180,0.57060699,112620.0,112610.0,0.67207212]
[1758568632413,1.22163691,112620.0,112610.0,0.494468]
[1758568632638,1.22163691,112620.0,112610.0,0.67207212]
[1758568633095,0.57060699,112620.0,112610.0,0.67207212]
[1758568633307,1.22163691,112620.0,112610.0,0.67207212]
[1758568633517,0.7123216,112620.0,112610.0,0.67207212]
[1758568634151,1.03783656,112620.0,112610.0,0.67207212]
[1758568634591,1.03283656,112620.0,112610.0,0.66907212]
[1758568634800,0.36669128,112620.0,112610.0,0.66907212]
[1758568635012,0.69620624,112620.0,112610.0,0.67907212]
[1758568635218,0.69620624,112620.0,112610.0,0.68107212]
[1758568635432,0.37069128,112620.0,112610.0,0.68107212]
[1758568635889,0.69220624,112620.0,112610.0,0.66907212]
[1758568636108,0.69620624,112620.0,112610.0,0.68307212]
[1758568636498,0.37069128,112620.0,112610.0,0.68307212]
[1758568636700,0.69620624,112620.0,112610.0,0.68307212]
[1758568637259,0.69620624,112620.0,112610.0,0.30511212]
[1758568637511,0.69620624,112620.0,112610.0,0.68351212]
[1758568637746,0.69720624,112620.0,112610.0,0.68651212]
[1758568638125,0.03169128,112620.0,112610.0,0.68651212]
[1758568638765,0.005,112620.0,112610.0,0.68651212]
[1758568639147,0.005,112620.0,112610.0,0.59047212]
[1758568639353,0.005,112620.0,112610.0,1.07039212]
[1758568640602,0.005,112620.0,112610.0,0.97443212]
[1758568640799,0.005,112620.0,112610.0,0.59047212]
[1758568640998,0.005,112620.0,112610.0,1.07039212]
[1758568641621,0.005,112620.0,112610.0,0.30811212]
[1758568641823,0.005,112620.0,112610.0,1.07039212]
[1758568644810,0.005,112620.0,112610.0,1.07023212]
[1758568649536,0.005,112620.0,112610.0,0.30811212]
[1758568649742,0.005,112620.0,112610.0,1.07007212]
[1758568651081,0.005,112620.0,112610.0,0.97431212]
[1758568651289,0.005,112620.0,112610.0,1.07027212]
[1758568653406,0.005,112620.0,112610.0,1.07015212]
[1758568655522,0.005,112620.0,112610.0,1.12015212]
[1758568655723,0.005,112620.0,112610.0,1.17015212]
[1758568656136,0.00322404,112620.0,112610.0,1.17015212]
[1758568656955,0.00322404,112620.0,112610.0,1.67015212]
[1758568657159,0.00322404,112620.0,112610.0,1.67011212]
[1758568660361,0.00322404,112620.0,112610.0,1.67007212]
[1758568661360,0.00322404,112620.0,112610.0,1.70022402]
[1758568661773,1e-08,112620.0,112610.0,1.70022402]
[1758568662203,1e-08,112620.0,112610.0,0.93826402]
[1758568662410,1e-08,112620.0,112610.0,2.08406402]
[1758568662812,0.88590889,112660.0,112650.0,0.17754105]
[1758568663058,1.06343418,112660.0,112650.0,0.28860072]
[1758568663215,0.62965165,112660.0,112650.0,0.66680072]
[1758568663404,0.88590889,112660.0,112650.0,0.66680072]
[1758568663603,0.81464258,112660.0,112650.0,0.66781072]
[1758568663802,0.81464258,112660.0,112650.0,0.28961072]
[1758568664010,0.81464258,112660.0,112650.0,0.73608957]
[1758568664445,0.38086005,112660.0,112650.0,0.73608957]
[1758568664621,0.02867901,112660.0,112650.0,0.73808957]
[1758568665022,0.02867901,112660.0,112650.0,0.35987957]
[1758568665367,0.46246154,112660.0,112650.0,0.73795957]
[1758568665581,0.46246154,112660.0,112650.0,0.73896957]
[1758568666009,0.02867901,112660.0,112650.0,0.73795957]
[1758568666313,0.46246154,112660.0,112650.0,0.73795957]
[1758568667081,0.46246154,112660.0,112650.0,1.23795957]
[1758568667649,0.46246154,112660.0,112650.0,1.23787957]
[1758568668857,0.46246154,112660.0,112650.0,0.85987957]
[1758568669063,0.46246154,112660.0,112650.0,1.23787957]
[1758568671806,0.02867901,112660.0,112650.0,0.73787957]
[1758568672157,0.46246154,112660.0,112650.0,0.73787957]
[1758568672521,0.02867901,112660.0,112650.0,0.73787957]
[1758568672745,0.46246154,112660.0,112650.0,0.73787957]
[1758568672952,0.002,112660.0,112650.0,0.73888957]
[1758568673952,0.002,112660.0,112650.0,1.12260957]
[1758568674147,0.002,112660.0,112650.0,0.36088957]
[1758568674706,0.002,112660.0,112650.0,1.12276957]
[1758568675540,0.002,112660.0,112650.0,1.02583957]
[1758568675739,0.43578253,112660.0,112650.0,1.12175957]
[1758568676178,0.43578253,112660.0,112650.0,1.12276957]
[1758568676376,0.002,112660.0,112650.0,1.12276957]
[1758568677196,0.002,112660.0,112650.0,1.62276957]
[1758568680957,0.002,112660.0,112650.0,1.62252957]
[1758568681338,0.002,112660.0,112650.0,0.86088957]
[1758568681541,0.43578253,112660.0,112650.0,1.14175957]
[1758568681796,0.43578253,112660.0,112650.0,1.23767957]
[1758568682081,0.002,112660.0,112650.0,1.23868957]
[1758568682227,0.002,112660.0,112650.0,0.73868957]
[1758568682434,0.43578253,112660.0,112650.0,0.73767957]
[1758568684289,0.61844782,112660.0,112650.0,0.15654852]
[1758568684494,0.64122782,112660.0,112650.0,0.15654852]
[1758568684743,0.66790598,112660.0,112650.0,0.53438852]
[1758568684940,0.64122782,112660.0,112650.0,0.53438852]
[1758568685735,0.64122782,112660.0,112650.0,0.71192957]
[1758568686792,0.46370253,112660.0,112650.0,1.21192957]
[1758568686987,0.43792253,112660.0,112650.0,1.21353957]
[1758568687214,0.002,112660.0,112650.0,1.23707957]
[1758568687426,0.43578253,112660.0,112650.0,1.23606957]
[1758568688398,0.002,112660.0,112650.0,1.23707957]
[1758568690323,0.43578253,112660.0,112650.0,1.23707957]
[1758568691220,0.002,112660.0,112650.0,1.23707957]
[1758568692505,0.002,112660.0,112650.0,0.73707957]
[1758568692733,0.002,112660.0,112650.0,0.35923957]
[1758568692943,0.002,112660.0,112650.0,1.12099957]
[1758568694912,0.002,112660.0,112650.0,0.35923957]
[1758568695320,0.43578253,112660.0,112650.0,1.12083957]
[1758568695519,0.43578253,112660.0,112650.0,0.35923957]
[1758568696091,0.61828782,112660.0,112650.0,0.61608957]
[1758568696295,0.64243782,112660.0,112650.0,0.33408957]
[1758568696450,0.64243782,112660.0,112650.0,0.71208957]
[1758568697241,0.64243782,112660.0,112650.0,1.21208957]
[1758568697442,0.46491253,112660.0,112650.0,0.83408957]
[1758568697911,0.64243782,112660.0,112650.0,1.21208957]
[1758568698108,0.64243782,112660.0,112650.0,0.83408957]
[1758568698317,0.64243782,112660.0,112650.0,1.21208957]
[1758568698747,0.46491253,112660.0,112650.0,1.21208957]
[1758568699780,0.46192253,112660.0,112650.0,1.21369957]
[1758568699988,0.02814,112660.0,112650.0,1.21369957]
[1758568700188,0.46491253,112660.0,112650.0,1.21369957]
[1758568700807,0.43578253,112660.0,112650.0,1.21369957]
[1758568701078,0.43578253,112660.0,112650.0,1.23832957]
[1758568701281,0.002,112660.0,112650.0,1.23933957]
[1758568702426,0.002,112660.0,112650.0,0.73933957]
[1758568703085,0.002,112660.0,112650.0,0.36133957]
[1758568703503,0.002,112660.0,112650.0,1.12301957]
[1758568706557,0.002,112660.0,112650.0,1.17301957]
[1758568706757,0.002,112660.0,112650.0,1.22301957]
[1758568707244,0.002,112660.0,112650.0,1.72201957]
[1758568707454,0.003,112660.0,112650.0,1.72601957]
[1758568707670,0.003,112660.0,112650.0,1.72609957]
[1758568707937,0.002,112660.0,112650.0,1.72209957]
[1758568708150,0.003,112660.0,112650.0,1.72809957]
[1758568708706,0.001,112660.0,112650.0,1.72609957]
[1758568708906,0.004,112660.0,112650.0,1.73909957]
[1758568710482,0.004,112660.0,112650.0,1.76925147]
[1758568711252,0.004,112660.0,112650.0,1.00749147]
[1758568711456,0.004,112660.0,112650.0,1.76905147]
[1758568712570,0.004,112660.0,112650.0,1.26905147]
[1758568712976,0.004,112660.0,112650.0,1.55685147]
[1758568713176,0.004,112660.0,112650.0,0.50749147]
[1758568713377,0.004,112660.0,112650.0,0.78937147]
[1758568713582,0.32900326,112660.0,112650.0,1.12309147]
[1758568713799,0.32900326,112660.0,112650.0,1.26800147]
[1758568714012,0.32900326,112660.0,112650.0,0.50749147]
[1758568714212,0.32900326,112660.0,112650.0,1.26909147]
[1758568714420,0.004,112660.0,112650.0,1.26909147]
[1758568717489,0.004,112660.0,112650.0,1.17305147]
[1758568717691,0.004,112660.0,112650.0,0.50749147]
[1758568717890,0.004,112660.0,112650.0,1.26901147]
[1758568718742,0.004,112660.0,112650.0,1.76901147]
[1758568721468,0.004,112660.0,112650.0,1.00749147]
[1758568721691,0.004,112660.0,112650.0,1.76881147]
[1758568722331,0.004,112660.0,112650.0,1.26881147]
[1758568727102,0.004,112660.0,112650.0,1.76881147]
[1758568728309,0.004,112660.0,112650.0,1.00749147]
[1758568728515,0.004,112660.0,112650.0,1.71841147]
[1758568728714,0.004,112660.0,112650.0,1.71837147]
[1758568728952,0.004,112660.0,112650.0,1.23877147]
[1758568729159,0.004,112660.0,112650.0,1.71837147]
[1758568731158,0.004,112660.0,112650.0,0.95749147]
[1758568731362,0.004,112660.0,112650.0,1.71837147]
[1758568732846,0.004,112660.0,112650.0,1.21837147]
[1758568734063,0.004,112660.0,112650.0,1.21821147]
[1758568735581,0.32900326,112660.0,112650.0,0.85693957]
[1758568735882,0.65920652,112660.0,112650.0,1.11064957]
[1758568736090,0.68221652,112660.0,112650.0,1.11064957]
[1758568736510,0.68221652,112660.0,112650.0,0.35008957]
[1758568736729,0.68221652,112660.0,112650.0,1.11060957]
[1758568737132,0.68221652,112660.0,112650.0,1.61060957]
[1758568739687,0.85974181,112660.0,112650.0,1.61060957]
[1758568740085,0.68221652,112660.0,112650.0,1.61060957]
[1758568740667,0.85974181,112660.0,112650.0,1.61060957]
[1758568741045,0.68221652,112660.0,112650.0,1.61060957]
[1758568742299,0.004,112660.0,112650.0,1.61221957]
[1758568742496,0.32900326,112660.0,112650.0,1.13553957]
[1758568742955,0.33407326,112660.0,112650.0,1.13392957]
[1758568743264,0.33407326,112660.0,112650.0,1.11060957]
[1758568743265,0.85933181,112660.0,112650.0,1.11060957]
[1758568744005,1.19933181,112660.0,112650.0,0.17254852]
[1758568744231,1.19933181,112660.0,112650.0,0.72684957]
[1758568745063,1.19933181,112660.0,112650.0,0.17254852]
[1758568745267,1.55101239,112660.0,112650.0,0.26846852]
[1758568745468,1.55101239,112660.0,112650.0,0.385578]
[1758568745698,1.55101239,112660.0,112650.0,0.481498]
[1758568746093,1.55101239,112660.0,112650.0,0.104738]
[1758568746298,1.54801239,112660.0,112650.0,0.438738]
[1758568746741,1.54701239,112660.0,112650.0,0.432738]
[1758568747153,1.54701239,112660.0,112650.0,0.933738]
[1758568747558,1.54901239,112660.0,112650.0,0.936738]
[1758568751384,1.54901239,112660.0,112650.0,0.966538]
[1758568752494,1.54901239,112660.0,112650.0,0.466538]
[1758568755000,1.54901239,112660.0,112650.0,0.089738]
[1758568755339,1.54901239,112660.0,112650.0,0.370538]
[1758568755525,1.54901239,112660.0,112650.0,0.00446833]
[1758568755791,2.55083888,112660.0,112650.0,0.00446833]
[1758568755990,2.55083888,112660.0,112650.0,0.02690833]
[1758568756128,2.58099078,112660.0,112650.0,0.02690833]
[1758568756747,2.55417407,112660.0,112650.0,0.02690833]
[1758568756959,2.55217407,112660.0,112650.0,0.02390833]
[1758568757357,1.59016429,112660.0,112650.0,0.02590833]
[1758568757857,1.59416429,112660.0,112650.0,0.02590833]
[1758568760710,2.56917407,112660.0,112650.0,0.02590833]
[1758568761333,1.59416429,112660.0,112650.0,0.02590833]
[1758568761757,2.56917407,112660.0,112650.0,0.02590833]
[1758568762335,2.57535704,112660.0,112650.0,0.00346833]
[1758568762500,2.60217375,112660.0,112650.0,0.00346833]
[1758568764772,2.57535704,112660.0,112650.0,0.00346833]
[1758568766473,2.59185404,112660.0,112650.0,0.00346833]
[1758568767030,0.62533748,112660.0,112650.0,0.00346833]
[1758568767285,2.57535704,112660.0,112650.0,0.00346833]
[1758568767936,1.60034726,112660.0,112650.0,0.00346833]
[1758568768593,1.60035326,112660.0,112650.0,0.00346833]
[1758568769750,1.61686122,112660.0,112650.0,0.00346833]
[1758568770601,1.50961538,112660.0,112650.0,0.00346833]
[1758568771524,1.04720151,112660.0,112650.0,0.00346833]
[1758568771745,1.03069355,112660.0,112650.0,0.00346833]
[1758568772208,1.0472118,112660.0,112650.0,0.00346833]
[1758568773958,1.00127355,112660.0,112650.0,0.02858833]
[1758568774102,0.99508458,112660.0,112650.0,0.02858833]
[1758568774322,1.00128369,112660.0,112650.0,0.02858833]
[1758568774490,0.99508458,112660.0,112650.0,0.02858833]
[1758568775341,0.99508458,112660.0,112650.0,0.40506833]
[1758568775766,0.99508458,112660.0,112650.0,0.491348]
[1758568775969,0.99508458,112660.0,112650.0,0.66888905]
[1758568777030,0.81355929,112660.0,112650.0,0.66888905]
[1758568777231,0.97808458,112660.0,112650.0,0.66588905]
[1758568777435,0.02667732,112660.0,112650.0,0.66888905]
[1758568777632,0.46255929,112660.0,112650.0,0.66888905]
[1758568777835,0.98008458,112660.0,112650.0,0.66888905]
[1758568778424,0.80255929,112660.0,112650.0,0.66888905]
[1758568779289,0.80255929,112660.0,112650.0,0.29240905]
[1758568779607,0.98008458,112660.0,112650.0,0.66900905]
[1758568781202,0.98008458,112660.0,112650.0,0.29240905]
[1758568781369,0.98008458,112660.0,112650.0,0.66928905]
[1758568781571,0.98008458,112660.0,112650.0,0.57336905]
[1758568781813,0.98008458,112660.0,112650.0,0.66932905]
[1758568782476,0.98008458,112660.0,112650.0,0.29240905]
[1758568782651,0.98008458,112660.0,112650.0,0.66924905]
[1758568784119,0.80255929,112660.0,112650.0,0.66924905]
[1758568784526,0.36867732,112660.0,112650.0,0.66924905]
[1758568784753,0.80255929,112660.0,112650.0,0.66924905]
[1758568785457,0.80255929,112660.0,112650.0,0.57328905]
[1758568785666,0.80255929,112660.0,112650.0,0.66924905]
[1758568786635,0.36867732,112660.0,112650.0,0.66924905]
[1758568786818,0.80255929,112660.0,112650.0,0.66924905]
[1758568788447,0.46255929,112660.0,112650.0,0.66924905]
[1758568788656,0.43588197,112660.0,112650.0,0.66924905]
[1758568790158,0.002,112660.0,112650.0,0.66924905]
[1758568790374,0.002,112660.0,112650.0,0.29240905]
[1758568790583,0.002,112660.0,112650.0,1.05340905]
[1758568791770,0.002,112660.0,112650.0,0.29240905]
[1758568792228,0.002,112660.0,112650.0,1.05324905]
[1758568793162,0.002,112660.0,112650.0,0.29240905]
[1758568793370,0.002,112660.0,112650.0,1.05324905]
[1758568793566,0.002,112660.0,112650.0,0.29240905]
[1758568794210,0.002,112660.0,112650.0,1.05316905]
[1758568794405,0.002,112660.0,112650.0,0.29240905]
[1758568794612,0.002,112660.0,112650.0,1.05312905]
[1758568795796,0.002,112660.0,112650.0,0.29240905]
[1758568796008,0.002,112660.0,112650.0,1.05312905]
[1758568797620,0.002,112660.0,112650.0,1.05304905]
[1758568797827,0.002,112660.0,112650.0,1.06538406]
[1758568798673,0.002,112660.0,112650.0,1.06438406]
[1758568799080,0.003,112660.0,112650.0,1.06838406]
[1758568799927,0.001,112660.0,112650.0,1.06638406]
[1758568800142,0.004,112660.0,112650.0,1.12538406]
[1758568800353,0.004,112660.0,112650.0,0.36474406]
[1758568800524,0.004,112660.0,112650.0,1.12518406]
[1758568800726,0.004,112660.0,112650.0,0.36474406]
[1758568801138,0.004,112660.0,112650.0,1.12518406]
[1758568801352,0.004,112660.0,112650.0,1.07518406]
[1758568801509,0.004,112660.0,112650.0,0.36474406]
[1758568801710,0.004,112660.0,112650.0,1.12514406]
[1758568802313,0.004,112660.0,112650.0,0.36474406]
[1758568802519,0.004,112660.0,112650.0,1.12510406]
[1758568803936,0.004,112660.0,112650.0,0.36474406]
[1758568804565,0.004,112660.0,112650.0,1.12514406]
[1758568807085,0.004,112660.0,112650.0,1.62514406]
[1758568809548,0.004,112660.0,112650.0,0.86474406]
[1758568809932,0.004,112660.0,112650.0,1.62498406]
[1758568810123,0.004,112660.0,112650.0,0.86474406]
[1758568810405,0.004,112660.0,112650.0,1.62494406]
[1758568810610,0.004,112660.0,112650.0,0.86474406]
[1758568811178,0.004,112660.0,112650.0,1.52894406]
[1758568811382,0.004,112660.0,112650.0,1.62486406]
[1758568812184,0.004,112660.0,112650.0,1.12486406]
[1758568812620,0.004,112660.0,112650.0,1.20501596]
[1758568816697,0.004,112660.0,112650.0,1.49253596]
[1758568816922,0.004,112660.0,112650.0,1.58845596]
[1758568817319,0.004,112660.0,112650.0,0.44489596]
[1758568817537,0.004,112660.0,112650.0,1.20477596]
[1758568817757,0.004,112660.0,112650.0,1.70477596]
[1758568821626,0.07126631,112690.0,112680.0,0.17749378]
[1758568821854,0.07126631,112690.0,112680.0,0.64057345]
[1758568822079,0.07126631,112690.0,112680.0,1.04834345]
[1758568822289,0.44784175,112700.0,112690.0,0.17747803]
[1758568822492,0.44784175,112700.0,112690.0,0.2874377]
[1758568823513,0.44997208,112700.0,112690.0,0.6636377]
[1758568823722,0.45313208,112700.0,112690.0,0.6636377]
[1758568823958,0.44798208,112700.0,112690.0,0.6636377]
[1758568824195,0.44998208,112700.0,112690.0,0.6686377]
[1758568824793,0.45197208,112700.0,112690.0,0.6706377]
[1758568825037,0.45197208,112700.0,112690.0,0.2944377]
[1758568825252,0.65633436,112700.0,112690.0,0.6459477]
[1758568826116,0.04183011,112700.0,112690.0,0.71369228]
[1758568826324,0.44998208,112700.0,112690.0,0.71369228]
[1758568826527,0.45197208,112700.0,112690.0,0.73677228]
[1758568826704,0.47887208,112700.0,112690.0,0.63924228]
[1758568826907,0.47887208,112700.0,112690.0,0.71208228]
[1758568827351,0.04499011,112700.0,112690.0,0.71208228]
[1758568827542,0.47887208,112700.0,112690.0,0.71208228]
[1758568828132,0.04499011,112700.0,112690.0,0.71369228]
[1758568828350,0.47887208,112700.0,112690.0,0.71208228]
[1758568829135,0.47887208,112700.0,112690.0,0.71369228]
[1758568829136,0.4360223,112700.0,112690.0,0.71369228]
[1758568829338,0.00214033,112700.0,112690.0,0.73723228]
[1758568830357,0.00214033,112700.0,112690.0,0.36103228]
[1758568830530,0.32704866,112700.0,112690.0,0.36103228]
[1758568830960,0.32704866,112700.0,112690.0,0.64143228]
[1758568831186,0.32704866,112700.0,112690.0,1.12095228]
[1758568831404,0.00214033,112700.0,112690.0,1.12095228]
[1758568831781,0.00214033,112700.0,112690.0,1.02503228]
[1758568831995,0.00214033,112700.0,112690.0,1.12091228]
[1758568832149,0.00214033,112700.0,112690.0,0.36103228]
[1758568832355,0.00214033,112700.0,112690.0,1.12091228]
[1758568833500,0.00214033,112700.0,112690.0,1.62091228]
[1758568834363,0.00214033,112700.0,112690.0,1.12091228]
[1758568834783,0.00214033,112700.0,112690.0,1.11986228]
[1758568834992,0.00214033,112700.0,112690.0,1.12087228]
[1758568841480,0.00214033,112700.0,112690.0,1.20102418]
[1758568842134,0.00214033,112700.0,112690.0,1.25102418]
[1758568842335,0.00014033,112700.0,112690.0,1.24602418]
[1758568842750,0.00214033,112700.0,112690.0,1.75502418]
[1758568843009,0.00014033,112700.0,112690.0,1.74402418]
[1758568843176,0.00014033,112700.0,112690.0,1.74802418]
[1758568843412,0.00214033,112700.0,112690.0,1.76102418]
[1758568843728,0.00214033,112700.0,112690.0,0.99718418]
[1758568843952,0.00314033,112700.0,112690.0,1.76314418]
[1758568847405,0.00314033,112700.0,112690.0,1.26314418]
[1758568847881,0.00314033,112700.0,112690.0,0.50318418]
[1758568848078,0.00314033,112700.0,112690.0,1.64654418]
[1758568852019,0.00314033,112700.0,112690.0,2.14654418]
[1758568852851,0.0979273,112740.0,112730.0,0.17741506]
[1758568853213,0.07661713,112740.0,112730.0,0.66294473]
[1758568853446,0.39834546,112740.0,112730.0,0.64041473]
[1758568853648,0.75031379,112740.0,112730.0,0.64041473]
[1758568853781,0.67904748,112740.0,112730.0,0.63880473]
[1758568854212,0.67904748,112740.0,112730.0,0.26268473]
[1758568854464,0.8564468,112740.0,112730.0,1.02240473]
[1758568854677,0.69742886,112740.0,112730.0,1.02340473]
[1758568855374,0.69742886,112740.0,112730.0,1.52340473]
[1758568856225,0.69742886,112740.0,112730.0,1.5900685]
[1758568856848,0.0476122,112740.0,112730.0,1.5900685]
[1758568857087,0.69742886,112740.0,112730.0,1.0900685]
[1758568857470,0.87482818,112740.0,112730.0,1.0900685]
[1758568857871,0.69742886,112740.0,112730.0,1.0900685]
[1758568858665,0.0476122,112740.0,112730.0,1.0900685]
[1758568858846,0.69742886,112740.0,112730.0,1.0900685]
[1758568859271,0.87482818,112740.0,112730.0,1.0900685]
[1758568860496,0.22501152,112740.0,112730.0,1.0900685]
[1758568860705,0.87482818,112740.0,112730.0,1.0900685]
[1758568860908,0.87482818,112740.0,112730.0,0.7064285]
[1758568861107,0.22501152,112740.0,112730.0,0.3303485]
[1758568861403,0.87482818,112740.0,112730.0,0.71102168]
[1758568861790,0.69742886,112740.0,112730.0,0.71102168]
[1758568862665,0.69742886,112740.0,112730.0,1.21102168]
[1758568862987,0.87482818,112740.0,112730.0,0.83498168]
[1758568863345,0.87482818,112740.0,112730.0,1.59454168]
[1758568864668,0.00714082,112740.0,112730.0,1.59615168]
[1758568864869,0.00714082,112740.0,112730.0,1.61983168]
[1758568865073,0.00714082,112740.0,112730.0,1.62084168]
[1758568865271,0.33204915,112740.0,112730.0,1.62084168]
[1758568865681,0.66837797,112740.0,112730.0,1.61983168]
[1758568866155,0.66837797,112740.0,112730.0,1.61822168]
[1758568866156,0.67053797,112740.0,112730.0,1.61822168]
[1758568866395,0.67369797,112740.0,112730.0,0.35866168]
[1758568866573,0.67369797,112740.0,112730.0,1.09454168]
[1758568866804,0.69647797,112740.0,112730.0,1.09454168]
[1758568867015,0.69647797,112740.0,112730.0,0.33498168]
[1758568867235,0.69647797,112740.0,112730.0,1.09454168]
[1758568867643,0.65695748,112740.0,112730.0,1.09615168]
[1758568867823,0.65695748,112740.0,112730.0,0.36027168]
[1758568868031,0.00714082,112740.0,112730.0,1.11983168]
[1758568868184,0.65695748,112740.0,112730.0,1.11983168]
[1758568868786,0.66227748,112740.0,112730.0,1.11983168]
[1758568869494,0.65695748,112740.0,112730.0,1.11983168]
[1758568871292,0.65695748,112740.0,112730.0,1.61983168]
[1758568872193,0.66227748,112740.0,112730.0,1.59615168]
[1758568872623,0.01246082,112740.0,112730.0,1.5915185]
[1758568872826,0.66227748,112740.0,112730.0,1.5915185]
[1758568873008,0.66227748,112740.0,112730.0,1.6151985]
[1758568873257,0.68505748,112740.0,112730.0,1.6151985]
[1758568873497,0.68505748,112740.0,112730.0,1.5915185]
[1758568874218,0.68505748,112740.0,112730.0,1.6151985]
[1758568875513,0.68189748,112740.0,112730.0,1.6151985]
[1758568875716,0.68495748,112740.0,112730.0,1.6151985]
[1758568876518,0.03208082,112740.0,112730.0,1.1151985]
[1758568876723,0.68189748,112740.0,112730.0,1.1151985]
[1758568876928,0.68495748,112740.0,112730.0,1.1151985]
[1758568877145,0.68495748,112740.0,112730.0,0.3319585]
[1758568877431,0.68495748,112740.0,112730.0,1.0898285]
[1758568878804,0.68495748,112740.0,112730.0,0.3303485]
[1758568879124,0.66217748,112740.0,112730.0,0.3303485]
[1758568879247,0.68543748,112740.0,112730.0,1.0898285]
[1758568881528,0.66217748,112740.0,112730.0,0.3303485]
[1758568881684,0.68543748,112740.0,112730.0,1.5897885]
[1758568883437,0.00714082,112740.0,112730.0,1.5924085]
[1758568883624,0.33204915,112740.0,112730.0,1.6166885]
[1758568884237,0.65695748,112740.0,112730.0,1.6166885]
[1758568884802,0.65695748,112740.0,112730.0,0.8562385]
[1758568885001,1.16438513,112740.0,112730.0,0.65293344]
[1758568885203,1.52764513,112740.0,112730.0,0.74877344]
[1758568885463,1.55430513,112740.0,112730.0,0.65293344]
[1758568885802,2.52903012,112740.0,112730.0,1.02889344]
[1758568886466,1.55430513,112740.0,112730.0,0.52889344]
[1758568887303,2.52903012,112740.0,112730.0,0.24877344]
[1758568887421,2.52903012,112740.0,112730.0,0.52889344]
[1758568887631,2.52903012,112740.0,112730.0,0.37696]
[1758568888891,2.55584683,112740.0,112730.0,0.001]
[1758568889111,2.52903012,112740.0,112730.0,0.28112]
[1758568890629,1.44619528,112740.0,112730.0,0.28112]
[1758568896035,1.44619528,112740.0,112730.0,0.28116]
[1758568896285,1.47634718,112740.0,112730.0,0.28116]
[1758568896866,1.46934718,112740.0,112730.0,0.28016]
[1758568897067,1.47234718,112740.0,112730.0,0.28016]
[1758568897267,1.48634718,112740.0,112730.0,0.28216]
[1758568898329,0.58958014,112740.0,112730.0,0.28216]
[1758568898530,1.02235771,112740.0,112730.0,0.36742967]
[1758568898676,1.45566528,112740.0,112730.0,0.36742967]
[1758568900316,1.45566528,112740.0,112730.0,0.46338967]
[1758568900530,1.45566528,112740.0,112730.0,0.28224]
[1758568900733,1.45566528,112740.0,112730.0,0.37812]
[1758568902100,1.45566528,112740.0,112730.0,0.002]
[1758568902333,1.45566528,112740.0,112730.0,0.37812]
[1758568904870,1.45566528,112740.0,112730.0,0.37808]
[1758568907017,1.45566528,112740.0,112730.0,0.002]
[1758568907371,1.45566528,112740.0,112730.0,0.2822]
[1758568913283,1.46393548,112740.0,112730.0,0.2822]
[1758568914271,1.48669484,112740.0,112730.0,0.2822]
[1758568918048,1.48669484,112740.0,112730.0,0.002]
[1758568918161,1.48669484,112740.0,112730.0,0.2822]
[1758568919057,1.05192727,112740.0,112730.0,0.2822]
[1758568919260,1.05486727,112740.0,112730.0,0.2822]
[1758568921070,1.05488856,112740.0,112730.0,0.2822]
[1758568922664,1.05488869,112740.0,112730.0,0.2822]
[1758568922882,1.02761869,112740.0,112730.0,0.28381]
[1758568923133,1.02555869,112740.0,112730.0,0.28482]
[1758568923343,1.02555869,112740.0,112730.0,0.30823]
[1758568923997,1.02769869,112740.0,112730.0,0.30823]
[1758568924407,1.03063869,112740.0,112730.0,0.40407]
[1758568924613,1.05496869,112740.0,112730.0,0.37965]
[1758568925029,1.05496869,112740.0,112730.0,0.37804]
[1758568925227,1.03063869,112740.0,112730.0,0.37804]
[1758568925425,1.03063869,112740.0,112730.0,0.002]
[1758568925719,1.05496869,112740.0,112730.0,0.37804]
[1758568928306,1.05498791,112740.0,112730.0,0.37804]
[1758568929376,1.03841698,112740.0,112730.0,0.37804]
[1758568930282,1.03220317,112740.0,112730.0,0.37804]
[1758568931159,1.48829814,112740.0,112730.0,0.002]
[1758568931366,1.48829814,112740.0,112730.0,0.28216]
[1758568931573,1.48829814,112740.0,112730.0,0.002]
[1758568931780,1.51511446,112740.0,112730.0,0.28216]
[1758568932199,1.48829775,112740.0,112730.0,0.28216]
[1758568932724,1.48829711,112740.0,112730.0,0.28216]
[1758568933239,1.47172484,112740.0,112730.0,0.28216]
[1758568933443,1.48829538,112740.0,112730.0,0.28216]
[1758568933669,1.46551064,112740.0,112730.0,0.28216]
[1758568933836,1.48829579,112740.0,112730.0,0.28216]
[1758568934242,1.47172473,112740.0,112730.0,0.28216]
[1758568934518,1.48829554,112740.0,112730.0,0.28216]
[1758568934747,1.48829554,112740.0,112730.0,0.002]
[1758568934944,1.48001014,112740.0,112730.0,0.0748]
[1758568935311,1.48829545,112740.0,112730.0,0.0748]
[1758568935889,1.48829545,112740.0,112730.0,0.002]
[1758568936098,1.48829545,112740.0,112730.0,0.25192]
[1758568936723,1.48829545,112740.0,112730.0,0.28212]
[1758568937128,1.48829545,112740.0,112730.0,0.002]
[1758568937328,1.5122333,112740.0,112730.0,0.002]
[1758568937513,1.51844662,112740.0,112730.0,0.07412]
[1758568937923,1.51844662,112740.0,112730.0,0.17484]
[1758568939032,1.57355768,112740.0,112730.0,0.28212]
[1758568939230,1.54525902,112740.0,112730.0,0.28212]
[1758568940304,1.54525813,112740.0,112730.0,0.28212]
[1758568941050,1.5452576,112740.0,112730.0,0.28212]
[1758568943561,1.51844089,112740.0,112730.0,0.28212]
[1758568946097,1.51842061,112740.0,112730.0,0.28212]
[1758568946462,1.49409061,112740.0,112730.0,0.28212]
[1758568946662,1.51679061,112740.0,112730.0,0.28212]
[1758568950127,1.51678717,112740.0,112730.0,0.28212]
[1758568951216,1.51678717,112740.0,112730.0,0.002]
[1758568951413,1.51678717,112740.0,112730.0,0.28212]
[1758568951865,1.51678717,112740.0,112730.0,0.002]
[1758568952031,1.51678717,112740.0,112730.0,0.28212]